bitfinex-derivatives/quotes_ETHF0:USTF0_20250708
["timestamp","ask_amount","ask_price","bid_price","bid_amount"]
[1751936903422,1.43845,2539.1,2539.0,1.48535]
[1751936903829,1.43845,2539.1,2539.0,0.6977]
[1751936904228,0.78767,2539.0,2538.9,3.217]
[1751936904527,1.43847,2539.0,2538.9,4.7024]
[1751936904927,1.43847,2539.0,2538.9,3.6521]
[1751936907529,1.43847,2539.0,2538.9,4.7024]
[1751936907723,0.6508,2539.0,2538.9,4.7024]
[1751936908026,0.78764,2539.1,2539.0,0.78764]
[1751936908226,0.78764,2539.1,2539.0,1.48534]
[1751936908427,1.43844,2539.1,2539.0,2.53564]
[1751936908930,1.43844,2539.1,2539.0,1.48537]
[1751936909324,1.43844,2539.1,2539.0,2.53567]
[1751936910030,0.78767,2539.0,2538.9,2.95439]
[1751936910226,1.43847,2539.0,2538.9,3.65209]
[1751936910531,1.43847,2539.0,2538.9,4.70239]
[1751936912132,1.43847,2539.0,2538.9,4.7024]
[1751936912628,1.43847,2539.0,2538.9,3.6521]
[1751936912828,1.43847,2539.0,2538.9,4.7024]
[1751936913336,0.6508,2539.0,2538.9,4.7024]
[1751936913633,1.43847,2539.0,2538.9,4.7024]
[1751936915328,0.6508,2539.0,2538.5,1.0503]
[1751936915533,0.78775,2538.8,2538.7,0.78773]
[1751936915835,0.7878,2538.7,2538.6,0.78778]
[1751936916034,3.54,2538.7,2538.6,0.78778]
[1751936916235,3.54,2538.7,2538.6,1.48548]
[1751936916631,0.7878,2538.6,2538.5,2.7706]
[1751936916833,1.4386,2538.6,2538.5,2.7706]
[1751936917034,1.4386,2538.6,2538.5,3.4683]
[1751936919133,1.4386,2538.6,2538.5,2.77063]
[1751936919331,1.4386,2538.6,2538.5,3.46833]
[1751936920244,0.78786,2538.5,2538.4,0.78784]
[1751936920534,0.6508,2538.6,2538.3,3.64567]
[1751936920535,1.43866,2538.4,2538.3,3.64567]
[1751936921530,0.78785,2538.5,2538.4,0.78786]
[1751936921731,1.43865,2538.5,2538.4,1.48556]
[1751936922136,1.43865,2538.5,2538.4,2.53586]
[1751936923336,0.78786,2538.4,2538.3,4.93876]
[1751936923732,0.6508,2538.4,2538.3,6.68676]
[1751936925037,1.43866,2538.4,2538.3,6.68676]
[1751936926343,1.43866,2538.4,2538.3,4.69596]
[1751936927238,1.43866,2538.4,2538.3,3.64566]
[1751936927437,1.43866,2538.4,2538.3,2.94796]
[1751936927634,1.43866,2538.4,2538.3,3.64566]
[1751936928240,0.78792,2538.3,2538.2,0.78789]
[1751936928436,1.43872,2538.3,2538.2,1.48559]
[1751936930542,0.78792,2538.3,2538.2,1.48559]
[1751936930839,1.44572,2538.3,2538.2,2.53589]
[1751936932141,1.44572,2538.3,2538.2,1.48559]
[1751936933342,0.78789,2538.4,2538.3,0.78789]
[1751936933536,1.44569,2538.4,2538.3,1.43979]
[1751936934142,0.78795,2538.1,2538.0,2.0785]
[1751936934442,0.78801,2538.0,2537.9,0.78798]
[1751936934644,1.96973,2538.3,2538.0,0.78795]
[1751936934645,0.78797,2538.1,2538.0,0.78795]
[1751936937845,1.44577,2538.1,2538.0,1.43985]
[1751936941145,0.78797,2538.1,2538.0,1.43985]
[1751936941344,1.44577,2538.1,2538.0,1.43985]
[1751936942545,1.44577,2538.1,2537.7,0.78805]
[1751936942546,0.7881,2537.8,2537.7,0.78805]
[1751936942747,0.7881,2537.8,2537.7,1.43995]
[1751936943151,0.7881,2537.8,2537.7,0.78805]
[1751936943355,0.78811,2537.7,2537.6,0.78808]
[1751936943542,0.78811,2537.7,2537.6,1.43998]
[1751936943947,0.78811,2537.7,2537.6,3.54258]
[1751936946051,1.44591,2537.7,2537.6,4.60758]
[1751936946251,0.78811,2537.7,2537.6,4.60758]
[1751936946449,1.44591,2537.7,2537.6,4.60758]
[1751936947754,0.78811,2537.7,2537.6,4.60758]
[1751936949051,0.78806,2537.8,2537.7,0.78802]
[1751936949359,0.78806,2537.8,2537.7,4.41793001]
[1751936949852,0.78806,2537.8,2537.7,3.35293001]
[1751936950048,1.44586,2537.8,2537.7,3.35293001]
[1751936951948,0.78806,2537.8,2537.7,4.41793001]
[1751936952148,1.44586,2537.8,2537.7,4.41793001]
[1751936952352,0.78806,2537.8,2537.7,4.41793001]
[1751936952555,1.44586,2537.8,2537.7,4.41793001]
[1751936956949,1.44586,2537.8,2537.6,2.1026]
[1751936957155,1.44588,2537.7,2537.6,1.44001]
[1751936960861,2.88287,2537.8,2537.7,0.78808]
[1751936961255,1.48847,2537.8,2537.7,0.78808]
[1751936961559,0.78807,2537.8,2537.7,0.78808]
[1751936961760,1.48847,2537.8,2537.7,0.78808]
[1751936962357,1.48847,2537.8,2537.7,2.43178]
[1751936963662,1.48844,2537.8,2537.7,2.43178]
[1751936965959,1.48844,2537.8,2537.7,1.43308]
[1751936968166,1.48844,2537.8,2537.7,2.43178]
[1751936969765,1.48844,2537.8,2537.7,1.6437]
[1751936969962,1.48844,2537.8,2537.6,0.78808]
[1751936969963,0.78808,2537.7,2537.6,0.78808]
[1751936970267,1.48848,2537.7,2537.6,2.43178]
[1751936970467,1.48848,2537.7,2537.6,0.645]
[1751936970964,1.48848,2537.7,2537.6,2.43181]
[1751936970965,0.78808,2537.7,2537.6,2.43181]
[1751936971166,1.48848,2537.7,2537.6,2.43181]
[1751936971768,0.78808,2537.7,2537.6,2.43181]
[1751936971962,1.48848,2537.7,2537.6,2.43181]
[1751936974063,1.48848,2537.7,2537.6,1.43311]
[1751936974966,1.48848,2537.7,2537.6,2.43181]
[1751936977963,0.7004,2537.7,2537.6,2.43181]
[1751936978266,0.7004,2537.7,2537.6,4.42731]
[1751936978462,1.48848,2537.7,2537.6,4.42731]
[1751936979666,0.78808,2537.7,2537.6,4.42731]
[1751936979871,0.78807,2537.8,2537.7,0.78803]
[1751936980074,0.78807,2537.8,2537.7,6.46724001]
[1751936980476,1.48847,2537.8,2537.7,6.46724001]
[1751936980669,1.48847,2537.8,2537.7,5.67921001]
[1751936980881,0.78811,2537.6,2537.5,1.9986]
[1751936981085,0.78817,2537.4,2537.3,0.7882]
[1751936981282,0.78817,2537.4,2537.3,1.4332]
[1751936981878,0.78817,2537.4,2537.3,0.645]
[1751936982081,2.34133754,2537.4,2537.3,0.645]
[1751936982381,4.43911154,2537.4,2537.3,0.645]
[1751936982777,9.43911154,2537.4,2537.3,0.645]
[1751936984680,0.78832,2536.9,2536.8,0.78835]
[1751936984877,0.78836,2536.8,2536.7,0.78837]
[1751936985083,0.78836,2536.8,2536.7,1.43337]
[1751936986184,0.78834,2536.9,2536.8,0.78833]
[1751936986383,1.48872,2536.9,2536.8,1.43333]
[1751936986583,1.48872,2536.9,2536.8,2.43203]
[1751936986886,1.48872,2536.9,2536.8,4.52733]
[1751936987180,2.1852,2537.1,2537.0,0.78829]
[1751936987387,6.85118,2537.5,2537.0,0.78829]
[1751936987388,12.334,2537.5,2537.3,0.78817]
[1751936987584,12.334,2537.5,2536.8,2.0953]
[1751936987585,0.7004,2537.5,2537.4,4.34488001]
[1751936987883,8.44,2537.7,2537.4,3.55671001]
[1751936988088,9.22809,2537.7,2537.6,2.70112001]
[1751936988283,1.48849,2537.7,2537.6,4.34482001]
[1751936988479,4.68204,2537.9,2537.8,0.78804]
[1751936988684,4.68204,2537.9,2537.8,3.34605001]
[1751936988880,4.68204,2537.9,2537.8,4.34475001]
[1751936989085,4.68204,2537.9,2537.8,6.45275001]
[1751936989583,5.38244,2537.9,2537.8,5.66471001]
[1751936989990,5.38244,2537.9,2537.8,5.45405001]
[1751936990387,5.38244,2537.9,2537.8,3.54104]
[1751936990690,5.38244,2537.9,2537.8,2.753]
[1751936991288,5.38244,2537.9,2537.8,3.54104]
[1751936991493,5.38244,2537.9,2537.8,2.753]
[1751936991694,1.48844,2537.9,2537.8,2.753]
[1751936991894,1.48844,2537.9,2537.8,3.54104]
[1751936992298,1.48844,2537.9,2537.8,2.753]
[1751936993594,0.78804,2537.8,2537.7,2.1274]
[1751936993789,3.88313001,2537.8,2537.3,2.93499]
[1751936993993,0.78829,2537.1,2536.9,1.031]
[1751936994194,0.78829,2537.1,2537.0,0.6503]
[1751936994495,0.78829,2537.1,2537.0,2.6411]
[1751936995499,0.78829,2537.1,2537.0,3.42939]
[1751936998001,0.78829,2537.1,2537.0,2.77909]
[1751936998202,0.78829,2537.1,2537.0,4.46039]
[1751936998494,1.48419,2537.1,2537.0,4.46039]
[1751937000704,0.6959,2537.1,2537.0,4.46039]
[1751937001002,0.78823,2537.3,2537.2,0.78822]
[1751937001296,0.78823,2537.3,2537.2,2.46952]
[1751937001500,1.48413,2537.3,2537.2,2.46952]
[1751937001800,1.48413,2537.3,2537.2,1.6813]
[1751937001995,5.86431,2537.6,2537.2,1.6813]
[1751937002193,1.56183935,2537.5,2537.2,1.6813]
[1751937002396,1.4841,2537.3,2537.1,0.78824]
[1751937002601,0.78823,2537.2,2537.1,0.78824]
[1751937002804,0.78823,2537.2,2537.1,1.43854]
[1751937003704,0.6959,2537.3,2537.0,0.78827]
[1751937003705,0.78826,2537.1,2537.0,0.78827]
[1751937003904,0.78826,2537.1,2537.0,1.43857]
[1751937004606,1.97045,2537.4,2537.3,0.78818]
[1751937004607,0.7882,2537.4,2537.3,0.78818]
[1751937004910,0.6959,2537.4,2537.1,2.0757]
[1751937005105,0.78823,2537.2,2537.1,2.86394]
[1751937005404,0.78823,2537.2,2537.1,0.78824]
[1751937005606,1.48413,2537.2,2537.1,1.43854]
[1751937005807,0.78823,2537.2,2537.1,1.43854]
[1751937006008,1.48413,2537.2,2537.1,1.43854]
[1751937007803,1.48413,2537.2,2537.1,4.48794]
[1751937008610,1.48413,2537.2,2537.1,3.6997]
[1751937010510,1.48413,2537.2,2537.1,4.48796]
[1751937010808,1.48413,2537.2,2537.1,3.6997]
[1751937011511,1.48413,2537.2,2537.1,4.48796]
[1751937012810,1.48413,2537.2,2537.1,3.45696]
[1751937013308,0.6959,2537.2,2537.1,4.48796]
[1751937013611,0.78822,2537.3,2537.2,0.78823]
[1751937013812,1.48412,2537.3,2537.2,2.8533]
[1751937014002,1.48412,2537.3,2537.2,0.6503]
[1751937014402,0.78823,2537.2,2537.1,1.81924]
[1751937014618,1.48413,2537.2,2537.1,1.81924]
[1751937014910,0.78823,2537.2,2537.1,2.46954]
[1751937015311,1.48413,2537.2,2537.1,2.46954]
[1751937017612,1.48413,2537.2,2537.1,1.6813]
[1751937022306,1.48413,2537.2,2537.1,0.6503]
[1751937022512,0.78829,2537.0,2536.9,5.2482]
[1751937022812,1.44159,2537.0,2536.9,5.9333]
[1751937023218,0.78836,2536.8,2536.7,1.84386]
[1751937023518,0.78836,2536.8,2536.7,4.52236]
[1751937023712,0.78836,2536.8,2536.7,6.56106]
[1751937025219,1.44166,2536.8,2536.7,2.6785]
[1751937025710,1.44166,2536.8,2536.7,1.9934]
[1751937025910,0.78842,2536.6,2536.5,1.0555]
[1751937026106,0.78842,2536.6,2536.5,1.7406]
[1751937026511,1.44172,2536.6,2536.5,2.52905]
[1751937027817,1.44172,2536.6,2536.5,1.7406]
[1751937028418,1.44172,2536.6,2536.5,2.52905]
[1751937029321,1.44172,2536.6,2536.5,4.73275]
[1751937032321,0.6533,2536.6,2536.5,0.6851]
[1751937032623,0.78851,2536.3,2536.2,2.70153001]
[1751937032923,1.44181,2536.3,2536.2,4.44213001]
[1751937033519,1.44181,2536.3,2536.2,3.38663001]
[1751937034122,2.1277,2536.5,2536.4,0.78848]
[1751937034319,2.781,2536.5,2536.4,0.78848]
[1751937034519,2.781,2536.5,2536.4,1.47358]
[1751937035026,2.781,2536.5,2536.4,4.44209001]
[1751937035220,3.894,2536.8,2536.4,3.65361001]
[1751937035422,4.68236,2536.8,2536.7,2.70140001]
[1751937035617,1.44166,2536.8,2536.7,2.59811001]
[1751937036229,1.44166,2536.8,2536.7,3.38650001]
[1751937036625,0.78835,2536.9,2536.8,0.78834]
[1751937036821,0.78835,2536.9,2536.8,1.47344]
[1751937037128,0.78835,2536.9,2536.8,2.52894]
[1751937037830,1.44165,2536.9,2536.8,2.52894]
[1751937039032,0.6533,2536.9,2536.8,2.52894]
[1751937039232,0.78832,2537.0,2536.9,0.78832]
[1751937039428,0.78832,2537.0,2536.9,4.44193001]
[1751937039630,1.44159,2537.0,2536.9,4.44191001]
[1751937040534,0.78829,2537.0,2536.9,4.44191001]
[1751937040925,0.78828,2537.1,2537.0,0.78829]
[1751937041130,0.78828,2537.1,2537.0,1.47339]
[1751937041331,0.78828,2537.1,2537.0,4.56099]
[1751937041726,1.44158,2537.1,2537.0,4.56099]
[1751937041932,0.78828,2537.1,2537.0,4.56099]
[1751937042231,1.44158,2537.1,2537.0,2.7172]
[1751937042836,0.78828,2537.1,2537.0,3.50549]
[1751937043031,1.44158,2537.1,2537.0,3.50549]
[1751937043237,0.78828,2537.1,2537.0,4.56099]
[1751937043431,1.44158,2537.1,2537.0,3.7727]
[1751937043636,1.44158,2537.1,2537.0,2.7172]
[1751937044731,1.97076,2537.0,2536.6,1.0555]
[1751937044933,0.6533,2536.7,2536.5,5.2789]
[1751937045135,0.78848,2536.4,2536.3,1.0555]
[1751937045433,0.78854,2536.2,2536.1,1.0555]
[1751937045633,2.70155001,2536.2,2536.1,1.0555]
[1751937045833,4.26585864,2536.2,2536.1,1.0555]
[1751937046037,2.70155001,2536.2,2536.1,1.0555]
[1751937046228,11.30774623,2536.2,2536.1,0.2202]
[1751937046433,0.78863,2535.9,2535.8,0.22710366]
[1751937046634,12.68970066,2535.9,2535.8,0.22710366]
[1751937047142,13.16844001,2535.9,2535.8,0.22710366]
[1751937047335,14.74651912,2535.9,2535.8,0.22710366]
[1751937048243,13.16844001,2535.9,2535.8,0.22710366]
[1751937048540,11.25543,2535.9,2535.8,0.22710366]
[1751937049042,53.69773,2535.9,2535.8,0.22710366]
[1751937049242,54.37593,2535.9,2535.8,0.22710366]
[1751937049642,13.57593,2535.9,2535.8,0.22710366]
[1751937053046,12.58793,2535.9,2535.8,0.87280366]
[1751937053244,12.58793,2535.9,2535.8,0.22710366]
[1751937053744,12.58793,2535.9,2535.8,0.87280366]
[1751937054344,13.65083,2535.9,2535.8,0.87280366]
[1751937054545,13.65083,2535.9,2535.8,0.22710366]
[1751937054946,15.77803,2535.9,2535.8,0.22710366]
[1751937055350,17.92943,2535.9,2535.8,0.22710366]
[1751937058552,15.80223,2535.9,2535.8,0.22710366]
[1751937058750,20.80323,2535.9,2535.8,0.22710366]
[1751937058947,17.90563,2535.9,2535.8,0.22710366]
[1751937061352,17.90663,2535.9,2535.8,0.22710366]
[1751937061853,14.74033,2535.9,2535.8,0.87280366]
[1751937062049,12.58893,2535.9,2535.8,0.87280366]
[1751937062251,13.65183,2535.9,2535.8,0.22710366]
[1751937063850,13.65283,2535.9,2535.8,0.22710366]
[1751937067958,13.65183,2535.9,2535.8,0.22710366]
[1751937070661,13.65183,2535.9,2535.8,0.87280366]
[1751937070958,13.65183,2535.9,2535.8,0.22710366]
[1751937072462,15.56484001,2535.9,2535.8,0.22710366]
[1751937073351,17.14719943,2535.9,2535.8,0.22710366]
[1751937074262,17.14760504,2535.9,2535.8,0.22710366]
[1751937078958,19.4817743,2535.9,2535.8,0.22710366]
[1751937079162,17.14760504,2535.9,2535.8,0.22710366]
[1751937079760,19.4817743,2535.9,2535.8,0.22710366]
[1751937081469,19.4817743,2535.9,2535.8,3.66e-06]
[1751937081663,21.4728743,2535.9,2535.8,3.66e-06]
[1751937082665,17.14760504,2535.9,2535.8,3.66e-06]
[1751937083469,21.04160504,2535.9,2535.8,3.66e-06]
[1751937084772,19.4817743,2535.9,2535.8,3.66e-06]
[1751937085573,24.30960504,2535.9,2535.8,3.66e-06]
[1751937085971,26.64500373,2535.9,2535.8,3.66e-06]
[1751937086170,24.30960504,2535.9,2535.8,3.66e-06]
[1751937086472,19.30960504,2535.9,2535.8,3.66e-06]
[1751937088167,24.30960504,2535.9,2535.8,3.66e-06]
[1751937088569,27.83779466,2535.9,2535.8,3.66e-06]
[1751937089066,13.16260504,2535.9,2535.8,3.66e-06]
[1751937089273,22.38859503,2535.9,2535.8,3.66e-06]
[1751937089573,26.63537404,2535.9,2535.8,3.66e-06]
[1751937090065,5.35846403,2535.9,2535.8,0.68750366]
[1751937090271,11.44669503,2535.9,2535.8,1.65150366]
[1751937090469,3.02469503,2535.9,2535.8,1.65150366]
[1751937090670,14.16369503,2535.9,2535.8,1.65150366]
[1751937090870,14.16369503,2535.9,2535.8,0.68750366]
[1751937091073,14.16269503,2535.9,2535.8,2.80490366]
[1751937091274,14.16269503,2535.9,2535.8,3.76890366]
[1751937091675,14.16269503,2535.9,2535.8,2.80490366]
[1751937092075,14.16269503,2535.9,2535.8,3.76890366]
[1751937092775,14.16269503,2535.9,2535.8,2.80490366]
[1751937093070,3.02469503,2535.9,2535.8,3.76890366]
[1751937093274,13.50939503,2535.9,2535.8,3.76890366]
[1751937093873,14.15289503,2535.9,2535.8,3.76890366]
[1751937097680,14.17213797,2535.9,2535.8,3.76890366]
[1751937098378,14.17213797,2535.9,2535.8,2.80490366]
[1751937099081,13.52863797,2535.9,2535.8,2.80490366]
[1751937099576,17.10704798,2535.9,2535.8,2.80490366]
[1751937099779,17.10704798,2535.9,2535.8,0.68750366]
[1751937100179,17.10704798,2535.9,2535.8,3.66e-06]
[1751937101278,17.10704798,2535.9,2535.8,0.68750366]
[1751937102971,17.10704798,2535.9,2535.8,3.66e-06]
[1751937103478,17.10704798,2535.9,2535.8,0.68750366]
[1751937103778,13.52863797,2535.9,2535.8,0.68750366]
[1751937104076,14.17213797,2535.9,2535.8,0.68750366]
[1751937104378,13.52863797,2535.9,2535.8,0.68750366]
[1751937104778,14.17213797,2535.9,2535.8,0.68750366]
[1751937108977,2.39063797,2535.9,2535.8,0.68750366]
[1751937109178,13.51963797,2535.9,2535.8,2.72770366]
[1751937109571,14.16313797,2535.9,2535.8,2.72770366]
[1751937109771,13.51963797,2535.9,2535.8,2.72770366]
[1751937110180,14.18603797,2535.9,2535.8,2.72770366]
[1751937112585,3.05703797,2535.9,2535.8,2.68140366]
[1751937112782,14.18603797,2535.9,2535.8,2.68140366]
[1751937113080,14.18503797,2535.9,2535.8,2.68140366]
[1751937113476,14.18261936,2535.9,2535.8,2.68140366]
[1751937113880,14.18261936,2535.9,2535.8,3.66e-06]
[1751937114086,15.23411936,2535.9,2535.8,3.66e-06]
[1751937114478,15.23411936,2535.9,2535.8,0.64120366]
[1751937114982,14.18261936,2535.9,2535.8,0.64120366]
[1751937115782,14.18261936,2535.9,2535.8,3.66e-06]
[1751937115978,14.18261936,2535.9,2535.8,0.64120366]
[1751937116176,14.18261936,2535.9,2535.8,3.66e-06]
[1751937116574,14.18261936,2535.9,2535.8,0.64120366]
[1751937117084,13.51621936,2535.9,2535.8,1.69160366]
[1751937117280,13.51621936,2535.9,2535.8,3.75430366]
[1751937117581,13.51621936,2535.9,2535.8,6.45598367]
[1751937118381,13.51621936,2535.9,2535.8,5.66731367]
[1751937118978,13.51621936,2535.9,2535.8,3.75430366]
[1751937119184,13.51621936,2535.9,2535.8,4.54297366]
[1751937119487,5.10221936,2535.9,2535.8,6.45598367]
[1751937119784,3.50263,2535.9,2535.8,6.45598367]
[1751937121681,0.78863,2535.9,2535.8,6.45598367]
[1751937123488,0.78863,2535.9,2535.8,5.66731367]
[1751937123688,0.78863,2535.9,2535.8,3.75430366]
[1751937123884,0.78863,2535.9,2535.8,4.54297366]
[1751937124790,0.78863,2535.9,2535.8,3.75430366]
[1751937125187,0.78863,2535.9,2535.8,6.45598367]
[1751937126091,0.78863,2535.9,2535.8,5.66731367]
[1751937130490,1.45503,2535.9,2535.8,5.66731367]
[1751937130695,0.78863,2535.9,2535.8,5.66731367]
[1751937130901,0.78863,2535.9,2535.8,3.75430366]
[1751937131306,0.78863,2535.9,2535.8,4.54297366]
[1751937131906,0.78863,2535.9,2535.8,3.75430366]
[1751937132107,0.78863,2535.9,2535.8,4.54297366]
[1751937135710,1.45503,2535.9,2535.8,2.70390366]
[1751937135904,4.41954001,2535.9,2535.8,0.64120366]
[1751937136105,1.45503,2535.9,2535.8,0.64120366]
[1751937137308,1.45503,2535.9,2535.8,1.69160366]
[1751937137905,1.45503,2535.9,2535.8,0.64120366]
[1751937138110,4.41954001,2535.9,2535.8,3.66e-06]
[1751937138401,6.02121033,2535.9,2535.8,3.66e-06]
[1751937139407,8.07721033,2535.9,2535.8,3.66e-06]
[1751937141712,8.07061033,2535.9,2535.8,3.66e-06]
[1751937142307,8.07022669,2535.9,2535.8,3.66e-06]
[1751937144910,8.07022669,2535.9,2535.8,0.68230366]
[1751937145214,8.07022669,2535.9,2535.8,3.66e-06]
[1751937145808,8.07022669,2535.9,2535.8,0.68230366]
[1751937146317,8.07022669,2535.9,2535.8,3.66e-06]
[1751937146518,19.18722669,2535.9,2535.8,3.66e-06]
[1751937148114,3.04971668,2535.9,2535.8,1.69480366]
[1751937148320,13.50691668,2535.9,2535.8,1.69480366]
[1751937148617,14.16671668,2535.9,2535.8,1.69480366]
[1751937148918,14.16954382,2535.9,2535.8,3.89120366]
[1751937149119,12.56543,2535.9,2535.8,3.89120366]
[1751937149413,12.56543,2535.9,2535.8,4.67987366]
[1751937149614,0.78861,2536.1,2535.8,3.89120366]
[1751937149917,6.93951,2536.4,2536.0,1.91301001]
[1751937150221,6.93951,2536.4,2536.3,1.91301001]
[1751937150517,8.54426624,2536.4,2536.3,0.78851]
[1751937151418,8.54426624,2536.4,2536.3,2.90781]
[1751937151622,8.54426624,2536.4,2536.3,2.1193]
[1751937153520,8.54426624,2536.4,2536.3,3.8141]
[1751937154214,1.60475624,2536.4,2536.3,6.51562001]
[1751937154422,2.94634,2536.8,2536.3,10.72711001]
[1751937154423,8.404,2536.8,2536.3,10.72711001]
[1751937154612,0.78841,2536.7,2536.6,0.78841]
[1751937154814,9.19238,2536.8,2536.5,1.91301001]
[1751937155014,9.19238,2536.8,2536.7,0.78839]
[1751937155216,9.19238,2536.8,2536.7,1.6948]
[1751937155916,0.78838,2536.8,2536.7,2.48319]
[1751937156118,0.78838,2536.8,2536.7,4.39620001]
[1751937156314,0.78838,2536.8,2536.7,3.60781001]
[1751937157018,0.78838,2536.8,2536.7,4.39620001]
[1751937157422,14.557,2537.2,2536.7,3.60781001]
[1751937157622,0.78832,2536.9,2536.8,1.80084]
[1751937157820,0.78832,2536.9,2536.8,1.6948]
[1751937158021,0.78832,2536.9,2536.8,2.48315]
[1751937158220,0.78832,2536.9,2536.8,1.6948]
[1751937158418,1.44812,2536.9,2536.8,1.6948]
[1751937158618,0.78832,2536.9,2536.8,1.6948]
[1751937158822,1.44812,2536.9,2536.8,1.6948]
[1751937159319,0.78832,2536.9,2536.8,1.6948]
[1751937159514,2.38351584,2536.9,2536.8,1.6948]
[1751937159915,2.38351584,2536.9,2536.8,2.48315]
[1751937160118,0.78832,2536.9,2536.8,4.39616001]
[1751937160827,0.78832,2537.0,2536.9,0.78831]
[1751937161026,0.78828,2537.1,2537.0,0.78827]
[1751937161322,0.78828,2537.1,2537.0,3.60781001]
[1751937163525,0.78828,2537.1,2537.0,1.6948]
[1751937163827,3.94149,2537.0,2535.7,1.97171]
[1751937164120,0.7885,2536.4,2536.3,0.7885]
[1751937164321,0.7885,2536.4,2536.3,1.4708]
[1751937164523,0.78857,2536.2,2536.1,1.0125]
[1751937164925,0.78853,2536.3,2536.1,1.6948]
[1751937165117,0.78854,2536.2,2536.1,1.47085]
[1751937165831,0.78854,2536.2,2536.1,2.48335]
[1751937166728,0.78854,2536.2,2536.1,1.6948]
[1751937167025,1.44834,2536.2,2536.1,1.6948]
[1751937167226,0.78854,2536.2,2536.1,2.48337]
[1751937167733,0.78854,2536.3,2536.2,0.78852]
[1751937168028,0.78854,2536.3,2536.2,4.39633001]
[1751937170229,0.78854,2536.3,2536.2,3.60781001]
[1751937170423,0.78854,2536.3,2536.2,4.39635001]
[1751937174540,0.78854,2536.3,2536.2,3.60781001]
[1751937175022,0.78854,2536.3,2536.2,5.65571001]
[1751937176233,0.78854,2536.3,2536.2,6.44425001]
[1751937176836,0.78854,2536.3,2536.2,5.65571001]
[1751937177941,1.46024,2536.3,2536.2,5.65571001]
[1751937178240,1.46024,2536.3,2536.2,6.44425001]
[1751937179338,1.46024,2536.3,2536.2,5.65571001]
[1751937179535,1.46024,2536.3,2536.2,6.44425001]
[1751937182340,0.6717,2536.3,2536.2,6.44425001]
[1751937182542,1.46021,2536.3,2536.2,6.44425001]
[1751937184743,0.6717,2536.3,2536.2,6.44425001]
[1751937185342,1.46021,2536.3,2536.2,6.44425001]
[1751937186246,0.6717,2536.3,2536.2,6.44425001]
[1751937186645,1.46021,2536.3,2536.2,6.44425001]
[1751937187544,0.78847,2536.5,2536.4,0.78848]
[1751937187743,1.46017,2536.5,2536.4,2.61011001]
[1751937188047,0.78848,2536.4,2536.3,0.78849]
[1751937188248,1.46018,2536.4,2536.3,1.48559]
[1751937188548,1.46018,2536.4,2536.3,2.52899]
[1751937189045,0.78848,2536.4,2536.3,2.52899]
[1751937189246,0.78848,2536.4,2536.3,4.69209]
[1751937189648,1.46018,2536.4,2536.3,4.69209]
[1751937190247,0.78846,2536.5,2536.4,0.78848]
[1751937190544,0.78841,2536.7,2536.6,0.78838]
[1751937190739,2.1369,2536.9,2536.6,3.65351001]
[1751937190939,0.78838,2536.7,2536.6,4.44191001]
[1751937191138,1.46008,2536.7,2536.6,4.44191001]
[1751937191345,0.78838,2536.7,2536.6,4.44191001]
[1751937191540,1.46008,2536.7,2536.6,4.44191001]
[1751937192045,0.78838,2536.7,2536.6,4.44191001]
[1751937192347,1.46008,2536.7,2536.6,4.44191001]
[1751937193452,0.6717,2536.7,2536.6,4.44191001]
[1751937193654,1.46009,2536.7,2536.6,4.44191001]
[1751937197054,1.46009,2536.7,2536.6,2.5289]
[1751937204450,0.6717,2536.7,2536.6,2.5289]
[1751937205456,0.78834,2536.9,2536.8,0.78835]
[1751937205653,1.48864,2536.9,2536.8,1.45275]
[1751937205954,1.48864,2536.9,2536.8,0.78835]
[1751937206156,1.48864,2536.9,2536.8,1.45275]
[1751937208057,4.06549146,2536.9,2536.8,0.6644]
[1751937208856,4.06549146,2536.9,2536.8,1.45275]
[1751937210058,3.08619146,2536.9,2536.8,1.45275]
[1751937210260,1.48864,2536.9,2536.8,1.45275]
[1751937215057,0.7003,2536.9,2536.8,1.45275]
[1751937215258,2.92621,2537.0,2536.9,0.78832]
[1751937215657,3.62651,2537.0,2536.9,1.45272]
[1751937216058,3.62651,2537.0,2536.9,0.78832]
[1751937216462,3.62651,2537.0,2536.9,1.45272]
[1751937219974,3.62651,2537.0,2536.9,0.6644]
[1751937220176,0.78832,2536.9,2536.8,2.96413]
[1751937220469,1.48862,2536.9,2536.8,2.96413]
[1751937220677,1.48862,2536.9,2536.8,3.62853]
[1751937222070,0.9793,2537.3,2536.8,3.888]
[1751937222270,2.3861402,2537.2,2537.1,0.78823]
[1751937222477,0.78829,2537.1,2537.0,0.78827]
[1751937222872,1.48859,2537.1,2537.0,1.45267]
[1751937225179,1.48859,2537.1,2537.0,0.6644]
[1751937227382,1.48859,2537.1,2537.0,1.45269]
[1751937230185,1.48859,2537.1,2537.0,0.6644]
[1751937230481,0.7003,2537.1,2537.0,1.45269]
[1751937230684,0.78826,2537.2,2537.1,0.78823]
[1751937230882,3.05875339,2537.2,2537.1,0.78823]
[1751937231082,0.78826,2537.1,2537.0,1.83607]
[1751937231283,1.46206,2537.1,2537.0,1.44797]
[1751937233184,0.6738,2537.1,2537.0,1.44797]
[1751937234079,1.46206,2537.1,2537.0,1.44797]
[1751937235283,0.9744,2537.5,2537.0,3.62071]
[1751937235588,2.38536317,2537.4,2537.3,0.7882]
[1751937235781,3.05916317,2537.4,2537.3,1.4479]
[1751937235982,3.05916317,2537.4,2537.3,0.6597]
[1751937236288,0.7882,2537.3,2537.2,2.86151]
[1751937236586,1.462,2537.3,2537.2,3.52121]
[1751937237789,0.7882,2537.4,2537.3,0.78817]
[1751937237987,2.38290475,2537.4,2537.3,0.78817]
[1751937238190,3.05670475,2537.4,2537.3,0.78817]
[1751937238484,3.05670475,2537.4,2537.3,1.44787]
[1751937238887,0.7882,2537.3,2537.2,4.92621]
[1751937239085,1.462,2537.3,2537.2,4.92621]
[1751937239286,1.462,2537.3,2537.2,5.58591]
[1751937240486,0.6738,2537.3,2537.2,6.57621]